Cogmind - Beta 9.6 *** ADVENTURER MODE // 2020.05.26 @ 03:02:05 Player: Koi Result: Self-destructed Performance ------------- Evolutions (2) 1000 Regions Visited (5) 1000 Robots Destroyed (77) 385 Value Destroyed (1916) 1916 Prototype IDs (6) 120 Alien Tech Used (0) 0 Bonus (721) 721 TOTAL SCORE: 5142 Bonus ------- High Alert Combat Kills 135 Follower Combat Kills 307 Aligned with FarCom 300 Friendly Fire -21 Cogmind --------- Core Integrity 419/550 Matter 300/300 Energy 275/275 System Corruption 0% Temperature Cool (0) Movement Treading (161) Location -8/Materials Parts ------- > --- POWER (1) -------- Deuterium Engine > --- PROPULSION (3) --- Armored Treads Armored Treads Advanced Treads > --- UTILITY (4) ------ Large Storage Unit Melee Analysis Suite Target Analyzer Reactive Plating > --- WEAPON (3) ------- Improved Datajack Katana Katana > --- INVENTORY (10) --- Carbon-fiber Leg Carbon-fiber Leg Titanium Leg Titanium Leg Titanium Leg Propulsion Shielding Improved Light Armor Plating Improved Light Armor Plating Beam Cannon Improved Grenade Launcher Peak State ------------ > --- POWER ------------ Deuterium Engine > --- PROPULSION ------- Armored Treads Armored Treads Advanced Treads > --- UTILITY ---------- Large Storage Unit Melee Analysis Suite Target Analyzer Reactive Plating > --- WEAPON ----------- Improved Datajack Katana Katana > --- INVENTORY -------- Carbon-fiber Leg Carbon-fiber Leg Titanium Leg Titanium Leg Titanium Leg Propulsion Shielding Improved Light Armor Plating Improved Light Armor Plating Beam Cannon Improved Grenade Launcher [Rating: 33] Favorites ----------- Power Improved Ion Engine Engine Improved Ion Engine Propulsion Light Treads Treads Light Treads Leg Aluminum Leg Utility Large Storage Unit Device Improved Heat Sink Storage Large Storage Unit Processor Melee Analysis Suite Protection Propulsion Shielding Weapon Particle Gun Energy Gun Particle Gun Energy Cannon Heavy Particle Cannon Ballistic Gun Assault Rifle Launcher Grenade Launcher Slashing Weapon Katana Special Melee Weapon Improved Datajack Build | -11 -10 -10 -10 -9 -8 ------- Run | Scr Mat Min Exi Min Mat Slots Evolved 4 | . . . . . 4 Power . | . . . . . . Propulsion 1 | . . . . . 1 Utility 2 | . . . . . 2 Weapon 1 | . . . . . 1 Parts Attached 68 | 9 11 3 4 12 29 Power 5 | 1 1 . . 1 2 Engine 5 | 1 1 . . 1 2 Core . | . . . . . . Reactor . | . . . . . . Propulsion 15 | 4 3 . . 3 5 Treads 7 | 2 2 . . . 3 Leg 8 | 2 1 . . 3 2 Wheel . | . . . . . . Hover . | . . . . . . Flight . | . . . . . . Utility 20 | 2 5 1 4 . 8 Device 6 | . 1 1 3 . 1 Storage 8 | 2 3 . 1 . 2 Processor 2 | . . . . . 2 Hackware . | . . . . . . Protection 4 | . 1 . . . 3 Artifact . | . . . . . . Weapon 28 | 2 2 2 . 8 14 Energy Gun 13 | . 2 2 . 4 5 Energy Cannon 2 | . . . . . 2 Ballistic Gun 2 | 2 . . . . . Ballistic Cannon . | . . . . . . Launcher 5 | . . . . 4 1 Special Weapon . | . . . . . . Impact Weapon . | . . . . . . Slashing Weapon 5 | . . . . . 5 Piercing Weapon . | . . . . . . Special Melee Weapon 1 | . . . . . 1 Unidentified Prototypes 3 | . . . 3 . . Parts Lost 2 | . . . . . 2 Power 1 | . . . . . 1 Propulsion 1 | . . . . . 1 Utility . | . . . . . . Weapon . | . . . . . . Highest Loss Streak 2 | . . . . . 2 Average Slot Usage (%) 99 | . 100 100 99 100 98 Engine 12 | . 14 14 14 14 8 Treads 17 | . 9 28 28 26 10 Leg 9 | . 18 . . 2 16 Device 8 | . 4 14 7 14 4 Storage 17 | . 23 14 19 14 16 Processor 2 | . . . . . 8 Protection 2 | . . . . . 6 Energy Gun 16 | . 9 28 28 26 8 Ballistic Gun 4 | . 18 . . . . Slashing Weapon 4 | . . . . . 14 Naked Turns . | . . . . . . Heaviest Build 52 | 17 30 30 33 30 52 Greatest Support 62 | 40 40 40 40 40 62 Greatest Overweight (x) 1 | . . . . 1 1 Average Overweight (x) . | . . . . . . Largest Inventory Capacity 16 | 8 12 10 10 10 16 Average Capacity 10 | 5 8 10 10 10 13 Most Carried 14 | 4 10 10 10 10 14 Average Carried 9 | 2 7 9 9 9 12 Final Capacity 10 | 8 10 10 10 10 10 Final Carried 10 | 2 10 10 9 10 10 Class Distribution -------------------- 91% | Mutant 8% | Skirmisher Dominant Class ---------------- Mutant | -10/Materials Mutant | -10/Mines Mutant | -10/Exiles Mutant | -9/Mines Mutant | -8/Materials Resources | -11 -10 -10 -10 -9 -8 ----------- Run | Scr Mat Min Exi Min Mat Matter Collected 1202 | 298 220 111 . 211 362 Remotely . | . . . . . . Salvage Created 2231 | 50 322 363 . 410 1086 Parts 139 | 2 31 13 . 24 69 Haulers Intercepted . | . . . . . . Recyclers Shooed . | . . . . . . Parts Field Recycled . | . . . . . . Retrieved Matter . | . . . . . . Parts Self-Destructed . | . . . . . . Prevented . | . . . . . . Kills | -11 -10 -10 -10 -9 -8 ------- Run | Scr Mat Min Exi Min Mat Combat Hostiles Destroyed 63 | . 15 9 . 12 27 Melee 18 | . . . . . 18 Guns 32 | . 15 9 . 5 3 Cannons 5 | . . . . . 5 AOE 8 | . . . . 7 1 Classes Destroyed 10 | 1 4 . . 3 2 Worker 2 | . 1 . . . 1 Builder 1 | . . . . . 1 Tunneler 2 | . . . . 1 1 Recycler 3 | 1 . . . 1 1 Watcher 6 | . 3 . . . 3 Swarmer 27 | . 12 . . 3 12 Grunt 24 | . 3 9 . 7 5 Brawler 2 | . . . . 1 1 Duelist 3 | . . . . 1 2 Sentry 7 | . . . . . 7 Best Kill Streak 6 | 1 5 6 . 3 6 Combat Bots Only 6 | . 3 6 . 3 5 Max Kills in Single Turn 2 | 1 2 1 . 2 1 Gunslinging . | . . . . . . Exploded 2 | . . . . 2 1 Melee 1 | . . . . . 1 Uniques/NPCs Destroyed . | . . . . . . Combat | -11 -10 -10 -10 -9 -8 -------- Run | Scr Mat Min Exi Min Mat Damage Taken 1711 | . 264 219 . 233 995 Core 259 | . 60 49 . 19 131 Absorbed by Shields . | . . . . . . Core Remaining (%) 74 | 100 . . . 48 . Volleys Fired 107 | 3 39 17 . 22 26 Largest 3 | 2 2 2 . 2 3 Hottest 201 | 40 130 130 . 130 201 Shots Fired 200 | 6 78 31 . 30 55 Gun 175 | 6 78 31 . 20 40 Cannon 13 | . . . . . 13 Launcher 12 | . . . . 10 2 Special . | . . . . . . Kinetic 68 | 6 62 . . . . Thermal 120 | . 16 31 . 20 53 Explosive 12 | . . . . 10 2 Electromagnetic . | . . . . . . Robot Hit Streak 19 | 3 18 13 . 19 15 Robot Miss Streak 3 | 1 3 1 . 1 1 Penetration Max . | . . . . . . Secondary Targets 5 | . 3 1 . . 1 Max Gunslinging Chain 1 | . 1 1 . . 1 Shots Hit Robots 217 | 4 59 25 . 20 109 Core Hits 117 | 2 24 16 . 30 45 Critical Hits 2 | . . . . . 2 Critical Kills 2 | . . . . . 2 Critical Parts Destroyed . | . . . . . . Melee Attacks 70 | . . . . . 70 Impact . | . . . . . . Slashing 64 | . . . . . 64 Piercing . | . . . . . . Sneak Attacks 4 | . . . . . 4 Combat Hostiles . | . . . . . . Follow-up Attacks 9 | . . . . . 9 Damage Inflicted 5459 | 47 824 397 . 983 3208 Guns 2047 | 47 821 397 . 238 544 Cannons 250 | . . . . . 250 Explosions 1052 | . . . . 734 318 Melee 2088 | . . . . . 2088 Ramming 22 | . 3 . . 11 8 Kinetic 633 | 47 586 . . . . Thermal 1754 | . 235 397 . 328 794 Explosive 962 | . . . . 644 318 Electromagnetic . | . . . . . . Impact . | . . . . . . Slashing 2088 | . . . . . 2088 Piercing . | . . . . . . Highest Corruption . | . . . . . . Average Corruption . | . . . . . . Corruption Purged . | . . . . . . Overload Shots . | . . . . . . Overflow Damage 96 | . . . . . 96 Projectiles 5 | . . . . . 5 Explosions . | . . . . . . Melee 91 | . . . . . 91 Knockbacks . | . . . . . . Impact . | . . . . . . Kinetic . | . . . . . . Secondary . | . . . . . . Self-Inflicted Damage 40 | . . . . 40 . Shots 2 | . . . . 2 . Rammed 3 | . 1 . . 2 . Targets Rammed 5 | . 1 . . 2 2 Kicked 2 | . . . . . 2 Crushed . | . . . . . . Highest Temperature 347 | . 198 298 . 72 347 Average Temperature 92 | . 108 113 . 25 90 Received Heat Transfer 612 | . 42 171 . 66 333 Effects 4 | . . 3 . . 1 Interference 4 | . . 3 . . 1 Siege Activations . | . . . . . . Robots Corrupted . | . . . . . . Combat Hostiles . | . . . . . . Parts Fried . | . . . . . . Impact Corruptions . | . . . . . . Robots Melted . | . . . . . . Combat Hostiles . | . . . . . . Parts Melted 6 | . 2 1 . . 3 Heat Transferred 3776 | . 555 962 . 705 1554 Parts Sabotaged . | . . . . . . Parts Stolen . | . . . . . . Parts Stripped . | . . . . . . Power Chain Reactions . | . . . . . . Missiles Intercepted . | . . . . . . Alert | -11 -10 -10 -10 -9 -8 ------- Run | Scr Mat Min Exi Min Mat Peak Influence 554 | 5 230 314 . 181 554 Average Influence 198 | 1 129 181 . 60 369 Maximum Alert Level 2 | . 1 1 . . 2 Low Security (%) 57 | 100 71 55 . 100 10 Level 1 27 | . 28 44 . . 46 Level 2 15 | . . . . . 42 Level 3 . | . . . . . . Level 4 . | . . . . . . Level 5 . | . . . . . . High Security . | . . . . . . Max Security . | . . . . . . Squads Dispatched 6 | . 1 1 . . 4 Investigation 2 | . 1 . . . 1 Extermination . | . . . . . . Reinforcement . | . . . . . . Assault 1 | . . 1 . . . Garrison 3 | . . . . . 3 Intercept . | . . . . . . Construction Impeded . | . . . . . . Haulers Reinforced . | . . . . . . Stealth | -11 -10 -10 -10 -9 -8 --------- Run | Scr Mat Min Exi Min Mat Distress Signals 3 | . 1 . . . 2 Communications Jammed . | . . . . . . Distress Signals . | . . . . . . Times Spotted 97 | . 19 13 . 16 49 Peak Tracking Total 6 | . 5 4 . 4 6 Tactical Retreats 9 | . . . . . 9 Traps | -11 -10 -10 -10 -9 -8 ------- Run | Scr Mat Min Exi Min Mat Traps Triggered 1 | . 1 . . . . Indirectly . | . . . . . . Trap Hack Attempts . | . . . . . . Triggered . | . . . . . . Disarmed . | . . . . . . Reprogrammed . | . . . . . . Reused . | . . . . . . Traps Extracted . | . . . . . . Installed . | . . . . . . Triggered . | . . . . . . Machines | -11 -10 -10 -10 -9 -8 ---------- Run | Scr Mat Min Exi Min Mat Machines Disabled 2 | . . . . 1 1 Max in Single Turn 1 | . . . . 1 . Machines Sabotaged . | . . . . . . Garrisons Compromised . | . . . . . . Overloaded Fab Kills . | . . . . . . Fab Network Shutdowns . | . . . . . . Hacking | -11 -10 -10 -10 -9 -8 --------- Run | Scr Mat Min Exi Min Mat Machines Accessed 12 | . 9 . . . 3 Terminals 10 | . 8 . . . 2 Fabricators . | . . . . . . Repair Stations . | . . . . . . Recycling Units 2 | . 1 . . . 1 Scanalyzers . | . . . . . . Garrison Access . | . . . . . . Total Hacks 26 | . 21 . . . 5 Successful 20 | . 17 . . . 3 Failed 6 | . 4 . . . 2 Catastrophic . | . . . . . . Database Lockouts . | . . . . . . Manual 16 | . 14 . 1 . 1 Terminals 24 | . 20 . . . 4 Fabricators . | . . . . . . Repair Stations . | . . . . . . Recycling Units 2 | . 1 . . . 1 Scanalyzers . | . . . . . . Garrison Access . | . . . . . . Terminal Hacks 10 | . 8 . . . 2 Prototype ID Bank 2 | . 2 . . . . Branch Access Points 1 | . 1 . . . . Emergency Access Points 1 | . 1 . . . . Locate Traps 4 | . 3 . . . 1 Recall Investigation 1 | . . . . . 1 Hauler Manifests 1 | . 1 . . . . Fabricator Hacks . | . . . . . . Repair Station Hacks . | . . . . . . Recycling Unit Hacks 2 | . 1 . . . 1 Report Inventory 2 | . 1 . . . 1 Scanalyzer . | . . . . . . Garrison Access Hacks . | . . . . . . Unauthorized Hacks 8 | . 8 . . . . Terminals 8 | . 8 . . . . Botnet 8 | . 8 . . . . Fabricators . | . . . . . . Repair Stations . | . . . . . . Recycling Units . | . . . . . . Scanalyzers . | . . . . . . Garrison Access . | . . . . . . Data Cores Recovered . | . . . . . . Used . | . . . . . . Hacking Detections 4 | . 3 . . . 1 Full Trace Events . | . . . . . . Feedback Events . | . . . . . . Feedback Blocked . | . . . . . . Robot Schematics Acquired . | . . . . . . Robots Built . | . . . . . . Matter . | . . . . . . Time . | . . . . . . Total Robot Build Rating . | . . . . . . Part Schematics Acquired . | . . . . . . Parts Built . | . . . . . . Matter . | . . . . . . Time . | . . . . . . Total Part Build Rating . | . . . . . . Parts Repaired . | . . . . . . Time . | . . . . . . Parts Recycled . | . . . . . . Recycled Matter . | . . . . . . Retrieved Matter . | . . . . . . Retrieved Components . | . . . . . . Parts Scanalyzed . | . . . . . . Part Schematics Acquired . | . . . . . . Parts Damaged . | . . . . . . Bothacking | -11 -10 -10 -10 -9 -8 ------------ Run | Scr Mat Min Exi Min Mat Used RIF Installer . | . . . . . . Robots Hacked 2 | . . . . . 2 Non-combat . | . . . . . . Combat 2 | . . . . . 2 Robot Hacks Applied 3 | . . . . . 3 parse_system 3 | . . . . . 3 Relay Couplers Released . | . . . . . . Robots Rewired . | . . . . . . Allies Hacked . | . . . . . . Hacks Repelled . | . . . . . . Allies | -11 -10 -10 -10 -9 -8 -------- Run | Scr Mat Min Exi Min Mat Total Allies 1 | . . 1 . . . Largest Group 1 | . . 1 1 1 1 Highest-Rated Group 31 | . . 31 31 31 31 Highest-Rated Ally 31 | . . 31 31 31 31 Total Orders . | . . . . . . Ally Attacks 54 | . . 21 . 21 12 Total Damage 752 | . . 257 . 289 206 Kills 16 | . . 3 . 8 5 Allies Corrupted . | . . . . . . Allies Melted . | . . . . . . Intel | -11 -10 -10 -10 -9 -8 ------- Run | Scr Mat Min Exi Min Mat Robot Analysis Total . | . . . . . . Derelict Logs Recovered 4 | . . 1 . 3 . Drone Launches . | . . . . . . Drone Recoveries . | . . . . . . Exploration | -11 -10 -10 -10 -9 -8 ------------- Run | Scr Mat Min Exi Min Mat Turns Passed 4171 | 77 885 330 396 1118 1365 Spaces Moved 2273 | 40 545 167 241 634 646 Core 2 | 2 . . . . . Treads 1387 | 11 161 167 241 589 218 Legs 884 | 27 384 . . 45 428 Wheels . | . . . . . . Hover . | . . . . . . Flight . | . . . . . . Fastest Speed 50 | 50 120 160 160 150 123 Average Speed 146 | 127 131 160 160 159 139 Slowest Speed 161 | 160 160 160 160 160 161 Overloaded Moves . | . . . . . . Propulsion Burnouts . | . . . . . . Robots Hopped . | . . . . . . Cave-ins Triggered . | . . . . . . Exploration Rate (%) 59 | 4 96 43 61 99 51 Regions Visited 5 Branch Regions 3 Pre-discovered Areas 2 | . . . . 2 . Known Exits Taken 1 | . 1 . . . . Unknown Exits Taken 4 | 1 . 1 1 1 . Scrap Searched 3 | . . 2 . 1 . Spaces Dug 29 | . . . . 16 13 Terrain Destroyed 105 | . . . . 79 26 Melee . | . . . . . . Projectile 3 | . . . . . 3 AOE 102 | . . . . 79 23 Actions | -11 -10 -10 -10 -9 -8 --------- Run | Scr Mat Min Exi Min Mat Total 2829 | 57 631 199 253 707 982 Wait 233 | . 20 8 2 32 171 Move 2268 | 39 544 166 240 633 646 Hop . | . . . . . . Pick Up 46 | 5 10 2 3 3 23 Fast Attach 16 | 5 2 1 . . 8 Attach 11 | 2 . . 2 . 7 Detach . | . . . . . . Swap 41 | 2 9 2 2 12 14 Drop 45 | 1 6 3 4 3 28 Fire 107 | 3 39 17 . 22 26 Melee 57 | . . . . . 57 Ram . | . . . . . . Kick 2 | . . . . . 2 Crush 3 | . 1 . . 2 . Escape Stasis . | . . . . . . Rewire . | . . . . . . Trap . | . . . . . . Miscellaneous . | . . . . . . Route ------- -11/Scrapyard -10/Materials (discovered 4 exits: [*Mat x3] / *Min) -10/Mines (discovered 3 exits: [*Mat x2] / *Exi) -10/Exiles (discovered 2 exits: [*Min x2]) -9/Mines (discovered 2 exits: *Mat x2) -8/Materials (discovered 2 exits: *Fac x2) History --------- Turn | Location | Event 11 | -11/Scrapyard | Discovered new exit (range 16) 78 | -11/Scrapyard | Entered Materials 202 | -10/Materials | Identified exit to Mines 306 | -10/Materials | Build established: Mutant 411 | -10/Materials | Discovered new exit (range 5) 485 | -10/Materials | Discovered new exit (range 16) 713 | -10/Materials | Discovered new exit (range 10) 963 | -10/Materials | Entered Mines 964 | -10/Mines | Met a Derelict testing a Signal Generator 976 | -10/Mines | Learned Materials emergency access door positions 1160 | -10/Mines | Discovered new exit (range 13) 1219 | -10/Mines | Discovered new exit (range 7) 1285 | -10/Mines | Deemed a non-threat by the Exiles lab entrance 1287 | -10/Mines | Discovered new exit (range 5) 1293 | -10/Mines | Entered Exiles 1293 | -10/Exiles | Accompanied by 1 ally 1314 | -10/Exiles | Discovered new exit (range 15) 1330 | -10/Exiles | Met 8R-AWN 1359 | -10/Exiles | Met EX-HEX 1431 | -10/Exiles | Met EX-BIN 1450 | -10/Exiles | Aligned with FarCom system 1452 | -10/Exiles | Given EX-Vault access code 1489 | -10/Exiles | Opened EX-Vault 1496 | -10/Exiles | Found Prototype Device 1497 | -10/Exiles | Identified Chronowheel 1497 | -10/Exiles | Activated Chronowheel 1504 | -10/Exiles | Found Prototype Device 1505 | -10/Exiles | Identified Trap Reconfigurator 1508 | -10/Exiles | Found Prototype Storage 1509 | -10/Exiles | Identified Superbattery 1545 | -10/Exiles | Warned to stay clear of 0b10 Research branches 1593 | -10/Exiles | Met EX-DEC 1668 | -10/Exiles | Discovered new exit (range 14) 1689 | -10/Exiles | Left Exiles lab with Superbattery 1689 | -10/Exiles | Entered Mines 1689 | -9/Mines | Accompanied by 1 ally 1697 | -9/Mines | Learned Materials stockpile data 1736 | -9/Mines | Discovered new exit (range 7) 1840 | -9/Mines | Learned location of 1 exit from Materials 1995 | -9/Mines | Learned location of Zion (-7) 2066 | -9/Mines | Learned location of Storage (-9) 2469 | -9/Mines | Discovered new exit (range 4) 2474 | -9/Mines | Core integrity fell below 50% 2807 | -9/Mines | Entered Materials 2807 | -8/Materials | Accompanied by 1 ally 2807 | -8/Materials | Evolved 4 slots: Propulsion x1, Utility x2, Weapon x1 2808 | -8/Materials | Identified exit to Factory 3069 | -8/Materials | Build established: Skirmisher 3421 | -8/Materials | Build established: Mutant 3545 | -8/Materials | Garrison activated, responded to threat 4030 | -8/Materials | Discovered exit to Factory (range 16) 4172 | -8/Materials | Self-destructed Last Messages --------------- 04007_ Command string: assimilate 04007_ No effect. 04008_ S-10 Pest destroyed. 04011_ Acquired 20 matter. 04013_ K-01 Serf collects debris. 04030_ EXIT=FOUND: FACTORY 04047_ R-06 Scavenger collects Flight Unit. 04057_ Dropped Rnf. Ion Engine. 04125_ Jacked Y-45 Defender... >>parse_system Reading system data... 04126_ Y-45 Defender destroyed. 04129_ Acquired 20 matter. 04146_ Sneak attack on U-05 Engineer. 04146_ U-05 Engineer destroyed. 04150_ K-01 Serf collects debris. 04152_ Sneak attack on K-01 Serf. 04152_ Destroyed Wheel. 04152_ Destroyed Lgt. Ion Engine. 04172_ Connecting with Terminal... Map ----- +----------------------------------------------------+ | ???# """ #????# #### ##% [ #??? | | ???# [ """ !#????# + ##+#######??? | | ???# #????# = ########%#????????? | | ???# """ #????###########??????# #????????? | | ???# """ #?????????????????????# #?######## | | ???# * """ #?????????????????????# #?# | | ???# #???????????????????### ### """ | | ???#####+######################## # ""S" | | ????# # "" " | | ????# < w + | | ????# # | | ????####+###### #####+######+### # ] | | ????# ## ## [ = # ######## | | ????# """ ## ## ]]=![! # #??????######## | | ????#""""" ## ## ]] [!!!# #?????????????? | | ????#""""" ## ## ]] [# ##????????????? | | ????#""""" ## ## # #????????????? | | ????# """ ## ## """ # ##????????????? | | ????# ##! ## """ # #?????????????? | | ????# ##%=## """ #####?????????????? | | ????# ##!!## #?????????????????? | | ????####+######[ ###########?????????????????? | | ??????# %+[!########????????????????????? | | ??????# !#= # #????????????????????? | | ??????# # # ^""#????????????????????? | | ??????######### # @T"#????????????????????? | | ??????????????# # ""#????????????????????? | | ????????*?????# + #????????????????????? | | ??????????????# # #????????????????????? | | ??????????????# ########????????????????????? | | ?????????????# ???????????????????????????? | | ?????????????+ ???????????????????????????? | | ?????????????# ???????????????????????????? | | ?????????????# #??????????????????????????? | | ?????????????## ##??????????????????????????? | | ??????????????# #???????????????????????????? | | ??????????+???# +??!????????????????????????? | | ??????????????# ????????????????????????????? | | ??????????+???# ????????????????????????????? | | ??????????????? ????????????????????????????? | | ??????????????? ????????????????????????????? | | ??????????????? ????????????????????????????? | | ?????????????????????????????????????????????? | | ?????????????????????????????????????????????? | | ?????????????????????????????????????????????? | | ?????????????????????????????????????????????? | | ?????????????????????????????????????????????? | | ?????????????????????????????????????????????? | | ?????????????????????????????????????????????? | | ?????????????????????????????????????????????? | +----------------------------------------------------+ Best States ------------- Heat Dissipation 45 Coolant Potential 50 Energy Generation 14 Energy Capacity 2265 Matter Stores 300 Matter Capacity 300 Sight Range 16 Terrain Scan Density 10 Armor Coverage 150 Resistance: KI 40 Resistance: TH 20 Resistance: EX 20 Resistance: EM 20 Resistance: I 20 Resistance: S 20 Resistance: P 20 Propulsion Shielding 33 Evasion (%) 40 Melee Accuracy 5 Target Analysis 5 Recoil Reduction 3 Offensive Hacking 10 Item Schematics ----------------- None Robot Schematics ------------------ None Fabricated ------------ Nothing Alien Tech Used ----------------- None Achievements -------------- Dramatic Entrance GoHome() Challenges ------------ None Game ------ Seed KineticCombatMapper Manual? 0 Play Time 00:59:37 Cumulative 13.5 hours Start 2020.05.26 @ 01:50:37 End 2020.05.26 @ 03:02:05 Sessions 1 Manual Loads 0 Difficulty Adventurer Special Mode None Game No. 9 Rogue 0 Adventurer 9 Explorer 0 Win Type - Total 0 Types 0/0/0/0/0/0/0 Lore% 10 Gallery% 15 Achievement% 13 Wizard Run 0 Options --------- ASCII 0 Keyboard 0 Movement Mouse Keybinds 0 Fullscreen 1 Font 18/SmallcapsGlow Map View 76x50 Tactical HUD 1 Map Filters NONE Filters NONE Steam 1 RUN: b0dfc134-962d-4485-a795-297adb2653e9